[Event "Sabato rapido!"]
[Site "Chess.com"]
[Date "2020.05.30"]
[Round "2"]
[White "Carbon"]
[Black "caramante"]
[Result "1-0"]
[WhiteElo "1765"]
[BlackElo "1543"]
[TimeControl "720+3"]
[EndTime "6:44:46 PDT"]
[Termination "Carbon ha vinto per scaccomatto"]

1. e4 {[%clk 0:12:02.6]} 1... c5 {[%clk 0:12:00.6]} 2. Nf3 {[%clk 0:12:03.7]}
2... d6 {[%clk 0:11:47.4]} 3. c3 {[%clk 0:11:58.2]} 3... Nf6 {[%clk 0:11:47.7]}
4. h3 {[%clk 0:11:57.9]} 4... Bd7 {[%clk 0:11:45.6]} 5. Bd3 {[%clk 0:11:49.7]}
5... a6 {[%clk 0:11:46.2]} 6. O-O {[%clk 0:11:40.7]} 6... e6 {[%clk 0:11:47.5]}
7. Bc2 {[%clk 0:11:32.6]} 7... Be7 {[%clk 0:11:48.2]} 8. d4 {[%clk 0:11:22]}
8... Qc7 {[%clk 0:11:44.5]} 9. Re1 {[%clk 0:11:12.1]} 9... O-O {[%clk
0:11:43.4]} 10. Bf4 {[%clk 0:10:51.5]} 10... b6 {[%clk 0:11:14.6]} 11. Nbd2
{[%clk 0:10:41.9]} 11... Nc6 {[%clk 0:11:09.7]} 12. Rc1 {[%clk 0:10:35.8]} 12...
Rac8 {[%clk 0:11:07.4]} 13. a3 {[%clk 0:10:04.5]} 13... g6 {[%clk 0:10:09.3]}
14. Nf1 {[%clk 0:09:21.1]} 14... Nh5 {[%clk 0:10:01.4]} 15. Bh6 {[%clk
0:09:15.4]} 15... Rfd8 {[%clk 0:09:58.4]} 16. Qd2 {[%clk 0:09:13.9]} 16... Bf8
{[%clk 0:09:45]} 17. N1h2 {[%clk 0:08:58.5]} 17... Ng7 {[%clk 0:09:02.7]} 18.
Ng4 {[%clk 0:08:53]} 18... f5 {[%clk 0:08:16.5]} 19. Nf6+ {[%clk 0:08:15.5]}
19... Kh8 {[%clk 0:08:13.9]} 20. exf5 {[%clk 0:08:06.7]} 20... exf5 {[%clk
0:07:56.5]} 21. Ng5 {[%clk 0:07:37.9]} 21... Be8 {[%clk 0:07:29.8]} 22. Nfxh7
{[%clk 0:07:18.8]} 22... Bf7 {[%clk 0:07:19]} 23. Nxf7+ {[%clk 0:06:49]} 23...
Qxf7 {[%clk 0:07:14.5]} 24. Ng5 {[%clk 0:06:46.1]} 24... Qf6 {[%clk 0:06:54.5]}
25. Bxg7+ {[%clk 0:06:23.4]} 25... Bxg7 {[%clk 0:06:34.5]} 26. Re6 {[%clk
0:06:18.6]} 26... Qf8 {[%clk 0:06:25.7]} 27. Rxg6 {[%clk 0:06:17.2]} 27... cxd4
{[%clk 0:06:19.7]} 28. Qf4 {[%clk 0:05:48.5]} 28... Ne5 {[%clk 0:06:03.7]} 29.
Qh4+ {[%clk 0:05:45.4]} 29... Kg8 {[%clk 0:05:59.7]} 30. Qh7# {[%clk 0:05:45.3]}
1-0

[Event "Sabato rapido!"]
[Site "Chess.com"]
[Date "2020.05.30"]
[Round "2"]
[White "malberici"]
[Black "fausto2p"]
[Result "1/2-1/2"]
[WhiteElo "1381"]
[BlackElo "1191"]
[TimeControl "720+3"]
[EndTime "6:44:46 PDT"]
[Termination "Partita patta per ripetizione di mosse"]

1. d4 {[%clk 0:12:02.9]} 1... d5 {[%clk 0:12:00.8]} 2. c4 {[%clk 0:12:04]} 2...
c6 {[%clk 0:12:01.6]} 3. Nf3 {[%clk 0:11:59]} 3... Nf6 {[%clk 0:12:02]} 4. e3
{[%clk 0:11:56.2]} 4... a6 {[%clk 0:11:33.5]} 5. Nc3 {[%clk 0:11:48.8]} 5...
dxc4 {[%clk 0:11:33.6]} 6. Bxc4 {[%clk 0:11:49.5]} 6... b5 {[%clk 0:11:33.1]} 7.
Bb3 {[%clk 0:11:43.3]} 7... e6 {[%clk 0:11:18.2]} 8. O-O {[%clk 0:11:43.1]} 8...
Be7 {[%clk 0:11:07.8]} 9. a3 {[%clk 0:11:32]} 9... O-O {[%clk 0:11:05.4]} 10.
Bc2 {[%clk 0:11:18.7]} 10... Bb7 {[%clk 0:10:40.3]} 11. h3 {[%clk 0:11:17.6]}
11... c5 {[%clk 0:10:40.8]} 12. dxc5 {[%clk 0:11:11.7]} 12... Bxc5 {[%clk
0:10:32.2]} 13. Qe2 {[%clk 0:10:46.1]} 13... Qc7 {[%clk 0:10:14]} 14. b4 {[%clk
0:10:34.8]} 14... Be7 {[%clk 0:09:51.9]} 15. Bb2 {[%clk 0:10:33.6]} 15... Nbd7
{[%clk 0:09:35.2]} 16. Rac1 {[%clk 0:10:32.1]} 16... Nb6 {[%clk 0:09:21.2]} 17.
Nxb5 {[%clk 0:10:26.7]} 17... Qb8 {[%clk 0:09:04.7]} 18. Qd3 {[%clk 0:10:02]}
18... Be4 {[%clk 0:08:46.8]} 19. Qd4 {[%clk 0:09:33.1]} 19... Bxc2 {[%clk
0:08:41.9]} 20. Rxc2 {[%clk 0:09:24.2]} 20... axb5 {[%clk 0:08:40.5]} 21. Rfc1
{[%clk 0:09:07.4]} 21... Nc4 {[%clk 0:08:37.2]} 22. Ba1 {[%clk 0:09:04.9]} 22...
Rd8 {[%clk 0:07:58.3]} 23. Qh4 {[%clk 0:08:30.5]} 23... h6 {[%clk 0:06:32.2]}
24. Nd4 {[%clk 0:07:39.7]} 24... Nd5 {[%clk 0:05:58.1]} 25. Qg4 {[%clk
0:06:49.3]} 25... Nf6 {[%clk 0:05:57.1]} 26. Qh4 {[%clk 0:06:43.9]} 26... Nd5
{[%clk 0:05:12.8]} 27. Qg4 {[%clk 0:06:31.3]} 27... Nf6 {[%clk 0:05:08.8]} 28.
Qh4 {[%clk 0:06:17.9]} 1/2-1/2

[Event "Sabato rapido!"]
[Site "Chess.com"]
[Date "2020.05.30"]
[Round "2"]
[White "crippo"]
[Black "OMatteoWuO"]
[Result "1-0"]
[WhiteElo "1566"]
[BlackElo "1224"]
[TimeControl "720+3"]
[EndTime "6:46:35 PDT"]
[Termination "crippo ha vinto per scaccomatto"]

1. e4 {[%clk 0:11:49.5]} 1... c5 {[%clk 0:11:59.5]} 2. Nc3 {[%clk 0:11:46.5]}
2... Nc6 {[%clk 0:12:00.7]} 3. Nf3 {[%clk 0:11:46.6]} 3... Nf6 {[%clk
0:11:55.4]} 4. Bc4 {[%clk 0:11:45.3]} 4... d6 {[%clk 0:11:48.3]} 5. d3 {[%clk
0:11:45.4]} 5... Bg4 {[%clk 0:11:40.7]} 6. h3 {[%clk 0:11:43.8]} 6... Bxf3
{[%clk 0:11:41.4]} 7. gxf3 {[%clk 0:11:44.1]} 7... e6 {[%clk 0:11:27.5]} 8. Bg5
{[%clk 0:11:44.3]} 8... Be7 {[%clk 0:11:29.1]} 9. Qd2 {[%clk 0:11:42.3]} 9...
Nd4 {[%clk 0:11:26.3]} 10. Qd1 {[%clk 0:11:40.6]} 10... a6 {[%clk 0:11:16.8]}
11. a4 {[%clk 0:11:34.1]} 11... b5 {[%clk 0:11:12.1]} 12. axb5 {[%clk
0:11:34.3]} 12... axb5 {[%clk 0:11:11.5]} 13. Nxb5 {[%clk 0:11:34]} 13... Rxa1
{[%clk 0:11:11]} 14. Qxa1 {[%clk 0:11:25.5]} 14... Nxf3+ {[%clk 0:11:12.4]} 15.
Ke2 {[%clk 0:11:26.9]} 15... Nxg5 {[%clk 0:11:14.3]} 16. Qa7 {[%clk 0:11:22.6]}
16... O-O {[%clk 0:11:11.7]} 17. h4 {[%clk 0:11:17.9]} 17... d5 {[%clk
0:10:53.9]} 18. hxg5 {[%clk 0:11:15.3]} 18... Ng4 {[%clk 0:10:31.1]} 19. exd5
{[%clk 0:11:11.8]} 19... exd5 {[%clk 0:10:30.2]} 20. Bb3 {[%clk 0:11:03.9]}
20... Bxg5 {[%clk 0:10:21.4]} 21. Kf1 {[%clk 0:10:22.7]} 21... Qf6 {[%clk
0:09:53.1]} 22. Qxc5 {[%clk 0:10:18.5]} 22... Ne3+ {[%clk 0:09:50.5]} 23. Ke2
{[%clk 0:10:01.2]} 23... Ng4 {[%clk 0:09:28.4]} 24. Bxd5 {[%clk 0:09:53.1]}
24... Re8+ {[%clk 0:09:28.5]} 25. Be4 {[%clk 0:09:55]} 25... Qxf2+ {[%clk
0:09:25.4]} 26. Qxf2 {[%clk 0:09:55]} 26... Nxf2 {[%clk 0:09:26.3]} 27. Kxf2
{[%clk 0:09:56.6]} 27... Bf6 {[%clk 0:09:26.1]} 28. b3 {[%clk 0:09:56.9]} 28...
g6 {[%clk 0:09:22.5]} 29. Nc7 {[%clk 0:09:51.7]} 29... Rc8 {[%clk 0:09:19.5]}
30. Nd5 {[%clk 0:09:50.7]} 30... Bd4+ {[%clk 0:09:20.1]} 31. Kf3 {[%clk
0:09:50.9]} 31... Rxc2 {[%clk 0:09:20.1]} 32. b4 {[%clk 0:09:14.5]} 32... Rf2+
{[%clk 0:09:19.5]} 33. Kg3 {[%clk 0:09:15]} 33... f5 {[%clk 0:09:09.6]} 34. Bf3
{[%clk 0:09:15.2]} 34... Rd2 {[%clk 0:08:54.9]} 35. Rd1 {[%clk 0:09:14.9]} 35...
Be5+ {[%clk 0:08:48.2]} 36. Nf4 {[%clk 0:09:10.8]} 36... Rb2 {[%clk 0:08:39]}
37. Bd5+ {[%clk 0:09:05.7]} 37... Kg7 {[%clk 0:08:37.5]} 38. Kf3 {[%clk
0:09:00.2]} 38... Rxb4 {[%clk 0:08:23]} 39. Ne6+ {[%clk 0:09:00.5]} 39... Kf6
{[%clk 0:08:17.8]} 40. d4 {[%clk 0:08:59.2]} 40... Bd6 {[%clk 0:08:13.7]} 41.
Nc5 {[%clk 0:08:45.1]} 41... Kg7 {[%clk 0:07:35]} 42. Ke3 {[%clk 0:08:28.6]}
42... f4+ {[%clk 0:07:32.3]} 43. Kf3 {[%clk 0:08:26.7]} 43... g5 {[%clk
0:07:31.7]} 44. Kg4 {[%clk 0:08:27.3]} 44... h6 {[%clk 0:07:32.7]} 45. Kf5
{[%clk 0:08:26.1]} 45... Kh7 {[%clk 0:07:02.8]} 46. Bf7 {[%clk 0:08:22.2]} 46...
Rb5 {[%clk 0:06:49.4]} 47. Bg6+ {[%clk 0:08:23]} 47... Kg8 {[%clk 0:06:48.5]}
48. Rc1 {[%clk 0:08:15.7]} 48... f3 {[%clk 0:06:38]} 49. Ke6 {[%clk 0:08:13.6]}
49... Bxc5 {[%clk 0:06:35.4]} 50. dxc5 {[%clk 0:08:14.6]} 50... f2 {[%clk
0:06:28.9]} 51. c6 {[%clk 0:08:15.4]} 51... Rb6 {[%clk 0:06:23.7]} 52. Kd7
{[%clk 0:08:15.9]} 52... g4 {[%clk 0:06:10.5]} 53. Be4 {[%clk 0:08:15.3]} 53...
g3 {[%clk 0:05:58.9]} 54. c7 {[%clk 0:08:15.7]} 54... Kg7 {[%clk 0:05:31.6]} 55.
c8=Q {[%clk 0:08:16.8]} 55... Rf6 {[%clk 0:05:33.4]} 56. Qc3 {[%clk 0:08:10.8]}
56... Kf7 {[%clk 0:05:21.6]} 57. Qxg3 {[%clk 0:08:11]} 57... f1=Q {[%clk
0:05:17]} 58. Rxf1 {[%clk 0:08:11.6]} 58... Rxf1 {[%clk 0:05:18.4]} 59. Qg6+
{[%clk 0:08:13.4]} 59... Kf8 {[%clk 0:05:18.7]} 60. Qxh6+ {[%clk 0:08:15.3]}
60... Kg8 {[%clk 0:05:15.1]} 61. Bh7+ {[%clk 0:08:16.2]} 61... Kf7 {[%clk
0:05:13.2]} 62. Qg6+ {[%clk 0:08:15.4]} 62... Kf8 {[%clk 0:05:13.5]} 63. Qg8#
{[%clk 0:08:08.7]} 1-0

[Event "Sabato rapido!"]
[Site "Chess.com"]
[Date "2020.05.30"]
[Round "2"]
[White "APipitone"]
[Black "sirmale49"]
[Result "1-0"]
[WhiteElo "1484"]
[BlackElo "1368"]
[TimeControl "720+3"]
[EndTime "6:49:28 PDT"]
[Termination "APipitone ha vinto per abbandono"]

1. e4 {[%clk 0:12:02.9]} 1... d5 {[%clk 0:11:57.3]} 2. exd5 {[%clk 0:12:03.4]}
2... Qxd5 {[%clk 0:11:59.1]} 3. Nc3 {[%clk 0:12:04.9]} 3... Qd6 {[%clk 0:12:01]}
4. Nf3 {[%clk 0:12:05.5]} 4... c6 {[%clk 0:12:02.9]} 5. d4 {[%clk 0:12:06.4]}
5... Bg4 {[%clk 0:12:04.2]} 6. Be2 {[%clk 0:12:07.3]} 6... Nf6 {[%clk
0:12:06.1]} 7. Be3 {[%clk 0:12:05.9]} 7... Nbd7 {[%clk 0:12:02.4]} 8. O-O {[%clk
0:12:05.8]} 8... O-O-O {[%clk 0:11:59.8]} 9. h3 {[%clk 0:11:54.7]} 9... Bh5
{[%clk 0:11:59.4]} 10. Qd2 {[%clk 0:11:42]} 10... Bxf3 {[%clk 0:11:18.9]} 11.
Bxf3 {[%clk 0:11:41.8]} 11... e5 {[%clk 0:11:06.8]} 12. Rad1 {[%clk 0:11:21.2]}
12... Nd5 {[%clk 0:10:35.4]} 13. Nxd5 {[%clk 0:10:53.7]} 13... cxd5 {[%clk
0:10:33.1]} 14. dxe5 {[%clk 0:10:53.7]} 14... Nxe5 {[%clk 0:10:03]} 15. Bxd5
{[%clk 0:10:50.4]} 15... Nc6 {[%clk 0:09:14.4]} 16. Bf4 {[%clk 0:09:48.5]} 16...
Qc5 {[%clk 0:08:33]} 17. c4 {[%clk 0:09:38.9]} 17... Be7 {[%clk 0:07:20.7]} 18.
Qd3 {[%clk 0:08:43.8]} 18... Nd4 {[%clk 0:06:34.9]} 19. b4 {[%clk 0:08:15.8]}
19... Qb6 {[%clk 0:05:29.2]} 20. c5 {[%clk 0:07:47.8]} 20... Qf6 {[%clk
0:03:21.4]} 21. Qxd4 {[%clk 0:07:26.5]} 21... Qxd4 {[%clk 0:03:04.2]} 22. Rxd4
{[%clk 0:07:26.3]} 22... Bf6 {[%clk 0:03:05.4]} 23. Rd3 {[%clk 0:07:21.1]} 23...
Rhe8 {[%clk 0:02:52]} 24. Rfd1 {[%clk 0:07:06.3]} 24... Be5 {[%clk 0:02:19.5]}
25. Bxe5 {[%clk 0:07:04.4]} 25... Rxe5 {[%clk 0:02:20.1]} 26. Bxb7+ {[%clk
0:07:02.5]} 26... Kxb7 {[%clk 0:02:03.2]} 27. Rxd8 {[%clk 0:07:03]} 27... Kc6
{[%clk 0:02:04.7]} 28. Rc8+ {[%clk 0:07:00.5]} 28... Kb5 {[%clk 0:02:03.7]} 29.
Rb8+ {[%clk 0:06:59.5]} 29... Kc6 {[%clk 0:01:49.2]} 30. Rd6+ {[%clk 0:06:58]}
30... Kc7 {[%clk 0:01:50.7]} 31. Rbd8 {[%clk 0:06:55.1]} 31... Re2 {[%clk
0:01:40.6]} 32. b5 {[%clk 0:06:42.5]} 32... Re7 {[%clk 0:01:14.1]} 33. b6+
{[%clk 0:06:29.7]} 33... axb6 {[%clk 0:01:12.4]} 34. cxb6+ {[%clk 0:06:30.5]}
34... Kb7 {[%clk 0:01:11.2]} 35. R8d7+ {[%clk 0:06:30.1]} 1-0

[Event "Sabato rapido!"]
[Site "Chess.com"]
[Date "2020.05.30"]
[Round "3"]
[White "fausto2p"]
[Black "sergiodone"]
[Result "0-1"]
[WhiteElo "1187"]
[BlackElo "1437"]
[TimeControl "720+3"]
[EndTime "7:03:53 PDT"]
[Termination "sergiodone ha vinto per scaccomatto"]

1. d4 {[%clk 0:12:02.9]} 1... Nf6 {[%clk 0:11:34.1]} 2. c4 {[%clk 0:12:01.7]}
2... c5 {[%clk 0:11:35.5]} 3. d5 {[%clk 0:12:00.5]} 3... b5 {[%clk 0:11:36.7]}
4. b3 {[%clk 0:11:47.1]} 4... bxc4 {[%clk 0:11:37.9]} 5. bxc4 {[%clk 0:11:47.9]}
5... d6 {[%clk 0:11:39.4]} 6. e3 {[%clk 0:11:36.7]} 6... Nbd7 {[%clk 0:11:40]}
7. Nc3 {[%clk 0:11:31.4]} 7... g6 {[%clk 0:11:34.1]} 8. Nf3 {[%clk 0:11:31.3]}
8... Bg7 {[%clk 0:11:35.7]} 9. Bb2 {[%clk 0:11:27.3]} 9... O-O {[%clk
0:11:36.6]} 10. Be2 {[%clk 0:11:14.5]} 10... Rb8 {[%clk 0:11:38.3]} 11. Rb1
{[%clk 0:11:11.3]} 11... Qa5 {[%clk 0:11:21.3]} 12. a3 {[%clk 0:10:50.4]} 12...
Rxb2 {[%clk 0:11:13.2]} 13. Rxb2 {[%clk 0:10:31.5]} 13... Ne4 {[%clk 0:11:14.8]}
14. O-O {[%clk 0:09:56.8]} 14... Nxc3 {[%clk 0:11:15.9]} 15. Qb3 {[%clk
0:09:32.4]} 15... Nxe2+ {[%clk 0:11:14.7]} 16. Rxe2 {[%clk 0:09:33.7]} 16... Ba6
{[%clk 0:11:05.6]} 17. Rc2 {[%clk 0:08:41.7]} 17... Rb8 {[%clk 0:11:01.2]} 18.
Qd3 {[%clk 0:08:18.5]} 18... Nb6 {[%clk 0:10:55.5]} 19. Nd2 {[%clk 0:08:09.8]}
19... Nd7 {[%clk 0:10:18.8]} 20. Nf3 {[%clk 0:08:08.2]} 20... Ne5 {[%clk
0:09:37.1]} 21. Nxe5 {[%clk 0:08:02.4]} 21... Bxe5 {[%clk 0:09:36.8]} 22. f4
{[%clk 0:08:01.6]} 22... Bf6 {[%clk 0:09:34.4]} 23. g4 {[%clk 0:07:56.8]} 23...
Bc8 {[%clk 0:09:32.1]} 24. h3 {[%clk 0:07:29.6]} 24... Bd7 {[%clk 0:09:31]} 25.
Kh2 {[%clk 0:07:17.2]} 25... Ba4 {[%clk 0:09:22]} 26. Rg2 {[%clk 0:06:37.1]}
26... Rb3 {[%clk 0:09:21.6]} 27. Qe4 {[%clk 0:06:23.8]} 27... Qc3 {[%clk
0:09:15.2]} 28. g5 {[%clk 0:06:02.4]} 28... Bg7 {[%clk 0:09:14.9]} 29. Qxe7
{[%clk 0:05:48.6]} 29... Qxe3 {[%clk 0:09:15.1]} 30. Qxd6 {[%clk 0:04:52.3]}
30... Qxh3+ {[%clk 0:09:15.7]} 31. Kg1 {[%clk 0:04:53.3]} 31... Bd4+ {[%clk
0:09:16.8]} 32. Rgf2 {[%clk 0:04:45.8]} 32... Qg3+ {[%clk 0:09:14.7]} 33. Kh1
{[%clk 0:04:42.3]} 33... Qh3+ {[%clk 0:09:03.3]} 34. Rh2 {[%clk 0:04:29.4]}
34... Qxf1# {[%clk 0:09:03.5]} 0-1

[Event "Sabato rapido!"]
[Site "Chess.com"]
[Date "2020.05.30"]
[Round "3"]
[White "crippo"]
[Black "Carbon"]
[Result "0-1"]
[WhiteElo "1561"]
[BlackElo "1770"]
[TimeControl "720+3"]
[EndTime "7:04:13 PDT"]
[Termination "Carbon ha vinto per abbandono"]

1. e4 {[%clk 0:11:59.4]} 1... e6 {[%clk 0:11:58.3]} 2. d3 {[%clk 0:11:54.1]}
2... d5 {[%clk 0:11:58.1]} 3. Nc3 {[%clk 0:11:55.3]} 3... Nf6 {[%clk 0:11:56.1]}
4. exd5 {[%clk 0:11:55.8]} 4... exd5 {[%clk 0:11:49.5]} 5. Bg5 {[%clk
0:11:53.8]} 5... Be7 {[%clk 0:11:30.4]} 6. Nf3 {[%clk 0:11:53.5]} 6... O-O
{[%clk 0:11:31.4]} 7. Be2 {[%clk 0:11:54.6]} 7... Bg4 {[%clk 0:11:20.2]} 8. O-O
{[%clk 0:11:55.6]} 8... Nc6 {[%clk 0:11:13]} 9. h3 {[%clk 0:11:51.1]} 9... Bh5
{[%clk 0:11:14]} 10. Nh2 {[%clk 0:11:52.1]} 10... Bg6 {[%clk 0:11:09.1]} 11. Re1
{[%clk 0:11:48.5]} 11... Nd4 {[%clk 0:11:03.5]} 12. Nf3 {[%clk 0:11:46.2]} 12...
Ne6 {[%clk 0:10:57]} 13. Bh4 {[%clk 0:11:42.5]} 13... c5 {[%clk 0:10:37.6]} 14.
Ne5 {[%clk 0:11:41.3]} 14... d4 {[%clk 0:10:30.7]} 15. Nxg6 {[%clk 0:11:41.3]}
15... hxg6 {[%clk 0:10:31.8]} 16. Nb1 {[%clk 0:11:41.2]} 16... Bd6 {[%clk
0:10:16.4]} 17. Nd2 {[%clk 0:11:36.6]} 17... g5 {[%clk 0:10:13]} 18. Bg3 {[%clk
0:11:29.8]} 18... Bxg3 {[%clk 0:10:09.4]} 19. fxg3 {[%clk 0:11:30.9]} 19... Nd5
{[%clk 0:10:04]} 20. Nc4 {[%clk 0:11:27.8]} 20... b5 {[%clk 0:10:04.4]} 21. Ne5
{[%clk 0:11:10.1]} 21... Ne3 {[%clk 0:09:58.1]} 22. Qd2 {[%clk 0:11:07.5]} 22...
Qd5 {[%clk 0:09:39.3]} 23. Nf3 {[%clk 0:11:04.4]} 23... Qd6 {[%clk 0:09:28.7]}
24. Kh2 {[%clk 0:10:56.7]} 24... g4 {[%clk 0:09:18.3]} 25. Nh4 {[%clk
0:10:55.3]} 25... gxh3 {[%clk 0:09:10.8]} 26. gxh3 {[%clk 0:10:46.2]} 26... Ng5
{[%clk 0:08:50.7]} 27. Bf3 {[%clk 0:10:42.8]} 27... Qd7 {[%clk 0:07:54.8]} 28.
Bg4 {[%clk 0:10:27.9]} 28... Nxg4+ {[%clk 0:07:46.2]} 29. hxg4 {[%clk
0:10:27.6]} 29... Qxg4 {[%clk 0:07:45.8]} 30. Qg2 {[%clk 0:10:26.2]} 30... Rae8
{[%clk 0:07:40.1]} 31. Rxe8 {[%clk 0:10:13.1]} 31... Rxe8 {[%clk 0:07:40.9]} 32.
Rf1 {[%clk 0:10:14.1]} 32... Re2 {[%clk 0:07:02]} 33. Rf2 {[%clk 0:10:13.1]}
33... Re3 {[%clk 0:06:07.9]} 34. Rf4 {[%clk 0:10:04.8]} 34... Qe6 {[%clk
0:05:29.9]} 35. Nf5 {[%clk 0:09:53.4]} 35... Re2 {[%clk 0:05:25.2]} 36. Rf2
{[%clk 0:09:52.7]} 36... Rxf2 {[%clk 0:05:21.3]} 37. Qxf2 {[%clk 0:09:51.4]}
37... g6 {[%clk 0:05:16.7]} 38. Nh4 {[%clk 0:09:11.1]} 38... Kg7 {[%clk
0:05:03.1]} 39. Kg1 {[%clk 0:08:49.8]} 39... Nh3+ {[%clk 0:05:01.9]} 0-1

[Event "Sabato rapido!"]
[Site "Chess.com"]
[Date "2020.05.30"]
[Round "3"]
[White "pedrak"]
[Black "caramante"]
[Result "0-1"]
[WhiteElo "1684"]
[BlackElo "1560"]
[TimeControl "720+3"]
[EndTime "7:04:38 PDT"]
[Termination "caramante ha vinto per abbandono"]

1. d4 {[%clk 0:12:02.6]} 1... d5 {[%clk 0:11:55.8]} 2. Nf3 {[%clk 0:12:03.7]}
2... c6 {[%clk 0:11:57.7]} 3. Bf4 {[%clk 0:12:03.6]} 3... Nf6 {[%clk 0:11:58.9]}
4. e3 {[%clk 0:12:04]} 4... e6 {[%clk 0:12:00.8]} 5. Bd3 {[%clk 0:12:03.7]} 5...
Be7 {[%clk 0:12:01.4]} 6. O-O {[%clk 0:12:03.7]} 6... O-O {[%clk 0:12:03.1]} 7.
Nbd2 {[%clk 0:12:03.2]} 7... h6 {[%clk 0:12:05]} 8. h3 {[%clk 0:12:00.5]} 8...
a6 {[%clk 0:12:05.8]} 9. Qe2 {[%clk 0:11:59.3]} 9... Nbd7 {[%clk 0:12:05.9]} 10.
c3 {[%clk 0:11:53]} 10... Re8 {[%clk 0:12:04.9]} 11. e4 {[%clk 0:11:52.1]} 11...
dxe4 {[%clk 0:12:04.1]} 12. Nxe4 {[%clk 0:11:53]} 12... Nxe4 {[%clk 0:12:05.2]}
13. Qxe4 {[%clk 0:11:54.2]} 13... Nf6 {[%clk 0:12:05.9]} 14. Qe2 {[%clk
0:11:53.6]} 14... Bf8 {[%clk 0:11:58.6]} 15. Rad1 {[%clk 0:11:51.1]} 15... Nd5
{[%clk 0:11:55.7]} 16. Bc1 {[%clk 0:11:41.7]} 16... Bd6 {[%clk 0:11:46.3]} 17.
Ne5 {[%clk 0:11:39.8]} 17... Qf6 {[%clk 0:11:26.4]} 18. Qe4 {[%clk 0:11:19.2]}
18... Qf5 {[%clk 0:11:10]} 19. Qe2 {[%clk 0:10:26.7]} 19... Qf6 {[%clk 0:11:00]}
20. f4 {[%clk 0:10:24.9]} 20... c5 {[%clk 0:10:25.5]} 21. dxc5 {[%clk
0:09:37.9]} 21... Bxc5+ {[%clk 0:10:24.5]} 22. Kh1 {[%clk 0:09:39.3]} 22... Rd8
{[%clk 0:10:07.4]} 23. Ng4 {[%clk 0:09:38.4]} 23... Qh4 {[%clk 0:09:47.3]} 24.
Kh2 {[%clk 0:08:09.1]} 24... Bd7 {[%clk 0:08:59.5]} 25. Qe4 {[%clk 0:08:04.3]}
25... f5 {[%clk 0:08:56]} 26. Qe5 {[%clk 0:07:46.7]} 26... fxg4 {[%clk
0:08:55.1]} 27. c4 {[%clk 0:07:48.3]} 27... g3+ {[%clk 0:08:35.6]} 28. Kh1
{[%clk 0:07:49.2]} 28... Ne3 {[%clk 0:07:57.4]} 29. Bxe3 {[%clk 0:07:46.6]}
29... Bxe3 {[%clk 0:07:57.4]} 30. Qxe3 {[%clk 0:07:48]} 30... e5 {[%clk
0:07:52.5]} 31. f5 {[%clk 0:07:45.4]} 31... Bc6 {[%clk 0:07:50.1]} 32. Be4
{[%clk 0:07:45.5]} 32... Qxe4 {[%clk 0:07:39.8]} 33. Qxe4 {[%clk 0:07:44.3]}
33... Bxe4 {[%clk 0:07:40.2]} 34. Rde1 {[%clk 0:07:46]} 34... Rd4 {[%clk
0:07:38.5]} 35. Re3 {[%clk 0:07:43.9]} 35... Rad8 {[%clk 0:07:34.8]} 36. Rxg3
{[%clk 0:07:44.8]} 36... Rd1 {[%clk 0:07:33.5]} 37. Rxd1 {[%clk 0:07:41.2]}
37... Rxd1+ {[%clk 0:07:33.5]} 38. Kh2 {[%clk 0:07:44.1]} 38... Bxf5 {[%clk
0:07:33.5]} 39. Re3 {[%clk 0:07:42]} 39... e4 {[%clk 0:07:34]} 40. Re2 {[%clk
0:07:40.5]} 40... h5 {[%clk 0:07:30]} 41. Kg3 {[%clk 0:07:39.7]} 41... g6 {[%clk
0:07:29.9]} 42. h4 {[%clk 0:07:39.4]} 42... Rd4 {[%clk 0:07:28.8]} 43. b3 {[%clk
0:07:40.3]} 43... Kf7 {[%clk 0:07:30.4]} 44. Kf4 {[%clk 0:07:37.3]} 44... Kf6
{[%clk 0:07:30.8]} 45. g3 {[%clk 0:07:33.3]} 45... e3+ {[%clk 0:07:25.1]} 46.
Kxe3 {[%clk 0:07:34.3]} 46... Re4+ {[%clk 0:07:26]} 47. Kf3 {[%clk 0:07:33.9]}
47... Rxe2 {[%clk 0:07:27.3]} 48. Kxe2 {[%clk 0:07:35.3]} 48... Bb1 {[%clk
0:07:27.7]} 49. a3 {[%clk 0:07:36.7]} 49... Ba2 {[%clk 0:07:28.4]} 50. Kd3
{[%clk 0:07:33.3]} 50... Bxb3 {[%clk 0:07:29.1]} 51. Kc3 {[%clk 0:07:32.2]}
51... Ba4 {[%clk 0:07:29.8]} 52. Kb4 {[%clk 0:07:32.6]} 52... Bc6 {[%clk
0:07:31.4]} 53. Kc5 {[%clk 0:07:34.3]} 53... Kf5 {[%clk 0:07:33]} 54. Kd4 {[%clk
0:07:35.3]} 54... Kg4 {[%clk 0:07:35.1]} 0-1

[Event "Sabato rapido!"]
[Site "Chess.com"]
[Date "2020.05.30"]
[Round "3"]
[White "ottovolante"]
[Black "Mrtre7"]
[Result "0-1"]
[WhiteElo "989"]
[BlackElo "1457"]
[TimeControl "720+3"]
[EndTime "7:05:06 PDT"]
[Termination "Mrtre7 ha vinto per scaccomatto"]

1. e4 {[%clk 0:12:02.9]} 1... c5 {[%clk 0:12:00.8]} 2. f4 {[%clk 0:12:01.4]}
2... g6 {[%clk 0:12:01.1]} 3. Nc3 {[%clk 0:11:27.2]} 3... Bg7 {[%clk 0:12:01.3]}
4. Nf3 {[%clk 0:11:25.2]} 4... e6 {[%clk 0:12:02.7]} 5. e5 {[%clk 0:11:25.6]}
5... Nc6 {[%clk 0:12:04]} 6. d3 {[%clk 0:11:25.6]} 6... Nge7 {[%clk 0:12:05.3]}
7. a3 {[%clk 0:11:27.2]} 7... O-O {[%clk 0:11:58.9]} 8. Be3 {[%clk 0:11:28]}
8... b6 {[%clk 0:11:49.6]} 9. d4 {[%clk 0:11:05.8]} 9... Nf5 {[%clk 0:11:45]}
10. Bf2 {[%clk 0:10:43.3]} 10... cxd4 {[%clk 0:11:33.4]} 11. Nxd4 {[%clk
0:10:38.1]} 11... Ncxd4 {[%clk 0:11:28]} 12. Bxd4 {[%clk 0:10:38.4]} 12... Bb7
{[%clk 0:10:52.7]} 13. Ne2 {[%clk 0:10:25.6]} 13... Rc8 {[%clk 0:09:46.5]} 14.
c3 {[%clk 0:10:23.1]} 14... d6 {[%clk 0:08:14.8]} 15. Ng3 {[%clk 0:10:15.4]}
15... Nxd4 {[%clk 0:08:14.5]} 16. cxd4 {[%clk 0:10:15]} 16... dxe5 {[%clk
0:08:15.6]} 17. fxe5 {[%clk 0:10:15]} 17... Qh4 {[%clk 0:07:25.1]} 18. Qe2
{[%clk 0:08:46.5]} 18... Qxd4 {[%clk 0:07:08.2]} 19. Rd1 {[%clk 0:08:36.9]}
19... Qxe5 {[%clk 0:06:36.1]} 20. Qxe5 {[%clk 0:08:34.5]} 20... Bxe5 {[%clk
0:06:38]} 21. Rg1 {[%clk 0:08:31]} 21... Bxb2 {[%clk 0:06:23.2]} 22. a4 {[%clk
0:08:31]} 22... Rc2 {[%clk 0:06:06]} 23. Rb1 {[%clk 0:07:57.5]} 23... Rd8 {[%clk
0:05:51.5]} 24. Be2 {[%clk 0:07:53.9]} 24... Bc3+ {[%clk 0:04:51]} 25. Kf2
{[%clk 0:07:51.4]} 25... Bd4+ {[%clk 0:04:52]} 26. Kf1 {[%clk 0:07:44.1]} 26...
Bxg1 {[%clk 0:04:53.7]} 27. Kxg1 {[%clk 0:07:45.6]} 27... Rdd2 {[%clk
0:04:48.9]} 28. Bf3 {[%clk 0:07:44]} 28... Bxf3 {[%clk 0:04:49.5]} 29. gxf3
{[%clk 0:07:45.1]} 29... Rxh2 {[%clk 0:04:40.9]} 30. Rd1 {[%clk 0:07:36.9]}
30... Rhg2+ {[%clk 0:04:41.2]} 31. Kf1 {[%clk 0:07:37.9]} 31... Rxg3 {[%clk
0:04:42.6]} 32. Rd8+ {[%clk 0:07:38.7]} 32... Kg7 {[%clk 0:04:44.4]} 33. Rd7
{[%clk 0:07:38.3]} 33... Rxf3+ {[%clk 0:04:46.1]} 34. Ke1 {[%clk 0:07:39.7]}
34... Ra3 {[%clk 0:04:47.3]} 35. Rxa7 {[%clk 0:07:38.8]} 35... Ra1# {[%clk
0:04:48.8]} 0-1